fUSD/lending_fUSD_20250226
["ID","MTS","AMOUNT","RATE_DAILY","PERIOD"]
[354491026,1740531061395,-356.384426,0.00046849,14]
[354491027,1740531061405,-356.384426,0.00046849,14]
[354491028,1740531061414,-500.0,0.00046849,120]
[354491029,1740531061423,-591.65,0.00046849,120]
[354491030,1740531061433,-151.0,0.00046849,14]
[354491031,1740531061442,-151.0,0.00046849,14]
[354491032,1740531061452,-151.0,0.00046849,14]
[354491033,1740531061461,-542.78,0.00046849,120]
[354491034,1740531061470,-500.0,0.00046849,120]
[354491035,1740531061479,-151.0,0.00046849,14]
[354491036,1740531061488,-356.384426,0.00046849,14]
[354491037,1740531061497,-356.384426,0.00046849,14]
[354491038,1740531061506,-356.384426,0.00046849,14]
[354491039,1740531061515,-356.384426,0.00046849,14]
[354491040,1740531061524,-973.14,0.00046849,120]
[354491041,1740531061533,-1345.29,0.00046849,120]
[354491042,1740531061542,-599.85047603,0.00046849,120]
[354491043,1740531061552,-2099.26,0.00046849,120]
[354491044,1740531061561,-868.46,0.00046849,120]
[354491045,1740531061570,-1396.33,0.00046849,120]
[354491046,1740531061580,-563.18,0.00046849,120]
[354491047,1740531061589,-507.82194949,0.00046849,120]
[354491048,1740531061599,-1666.22,0.00046849,120]
[354491049,1740531061608,-500.0,0.00046849,120]
[354491050,1740531061618,-500.0,0.00046849,120]
[354491051,1740531061628,-3224.82,0.00046849,120]
[354491052,1740531061637,-819.75,0.00046849,120]
[354491053,1740531061646,-500.0,0.00046849,120]
[354491054,1740531061655,-1182.37,0.00046849,120]
[354491055,1740531061664,-1897.0,0.00046849,120]
[354491056,1740531061673,-500.0,0.00046849,120]
[354491057,1740531061682,-151.0,0.00046849,14]
[354491058,1740531061691,-153.665756,0.00046849,14]
[354491059,1740531061701,-500.0,0.00046849,120]
[354491060,1740531061710,-500.0,0.00046849,120]
[354491061,1740531061719,-1715.43,0.00046849,120]
[354491062,1740531061729,-3003.31,0.00046849,120]
[354491063,1740531061739,-500.0,0.00046849,120]
[354491064,1740531061750,-702.97,0.00046849,120]
[354491065,1740531061761,-1828.88,0.00046849,120]
[354491066,1740531061771,-2499.66,0.00046849,120]
[354491067,1740531061780,-500.0,0.00046849,120]
[354491068,1740531061789,-4732.77,0.00046849,120]
[354491069,1740531061799,-500.0,0.00046849,120]
[354491070,1740531061808,-500.0,0.00046849,120]
[354491071,1740531061818,-783.53,0.00046849,120]
[354491072,1740531061827,-711.28,0.00046849,120]
[354491073,1740531061836,-500.0,0.00046849,120]
[354491074,1740531061846,-1193.39,0.00046849,120]
[354491075,1740531061855,-1523.48,0.00046849,120]
[354491076,1740531061865,-613.78,0.00046849,120]
[354491077,1740531061874,-500.0,0.00046849,120]
[354491078,1740531061883,-1529.41,0.00046849,120]
[354491079,1740531061892,-500.0,0.00046849,120]
[354491080,1740531061901,-2593.69,0.00046849,120]
[354491081,1740531061910,-500.0,0.00046849,120]
[354491082,1740531061922,-500.0,0.00046849,120]
[354491083,1740531061931,-500.0,0.00046849,120]
[354491084,1740531061941,-1295.36,0.00046849,120]
[354491085,1740531061950,-4292.78,0.00046849,120]
[354491086,1740531061959,-1561.61,0.00046849,7]
[354491087,1740531061967,-500.0,0.00046849,120]
[354491088,1740531061977,-151.0,0.00046849,14]
[354491089,1740531061986,-500.0,0.00046849,120]
[354491090,1740531061995,-151.0,0.00046849,14]
[354491091,1740531062005,-151.0,0.00046849,14]
[354491092,1740531062014,-151.0,0.00046849,14]
[354491093,1740531062023,-668.25,0.00046849,120]
[354491094,1740531062032,-3800.0,0.00046849,120]
[354491095,1740531062042,-500.0,0.00046849,120]
[354491096,1740531062052,-500.0,0.00046849,120]
[354491097,1740531062061,-1622.29,0.00046849,120]
[354491098,1740531062071,-500.0,0.00046849,120]
[354491099,1740531062080,-2589.07,0.00046849,120]
[354491100,1740531062089,-5881.45,0.00046849,120]
[354491101,1740531062099,-4611.09,0.00046849,120]
[354491102,1740531062108,-2025.68,0.00046849,120]
[354491103,1740531062117,-500.0,0.00046849,120]
[354491104,1740531062127,-2188.22,0.00046849,120]
[354491105,1740531062136,-698.95,0.00046849,120]
[354491106,1740531062145,-500.0,0.00046849,120]
[354491107,1740531062154,-500.0,0.00046849,120]
[354491108,1740531062164,-500.0,0.00046849,120]
[354491109,1740531062173,-500.0,0.00046849,120]
[354491110,1740531062184,-628.79,0.00046849,120]
[354491111,1740531062193,-2707.9,0.00046849,120]
[354491112,1740531062202,-551.68,0.00046849,120]
[354491113,1740531062211,-500.0,0.00046849,120]
[354491114,1740531062221,-151.0,0.00046849,14]
[354491115,1740531062230,-151.0,0.00046849,14]
[354491116,1740531062240,-151.0,0.00046849,14]
[354491117,1740531062249,-151.0,0.00046849,14]
[354491118,1740531062259,-1037.02,0.00046849,120]
[354491119,1740531062268,-513.74,0.00046849,120]
[354491120,1740531062277,-500.0,0.00046849,120]
[354491121,1740531062287,-500.0,0.00046849,120]
[354491122,1740531062296,-2081.56,0.00046849,120]
[354491123,1740531062306,-500.0,0.00046849,120]
[354491124,1740531062316,-1512.43,0.00046849,120]
[354491125,1740531062326,-500.0,0.00046849,120]
[354491126,1740531062336,-500.0,0.00046849,120]
[354491127,1740531062346,-723.800798,0.00046849,14]
[354491128,1740531062357,-723.800798,0.00046849,14]
[354491129,1740531062367,-723.800798,0.00046849,14]
[354491130,1740531062376,-500.0,0.00046849,120]
[354491131,1740531062385,-723.800798,0.00046849,14]
[354491132,1740531062395,-500.0,0.00046849,120]
[354491133,1740531062405,-1097.857097,0.00046849,14]
[354491134,1740531062415,-1097.857097,0.00046849,14]
[354491135,1740531062425,-1097.857097,0.00046849,14]
[354491136,1740531062436,-1667.57,0.00046849,120]
[354491137,1740531062445,-1097.857097,0.00046849,14]
[354491138,1740531062455,-500.0,0.00046849,120]
[354491139,1740531062464,-184.923543,0.00046849,7]
[354491140,1740531062474,-5016.99,0.00046849,120]
[354491141,1740531062484,-184.923543,0.00046849,7]
[354491142,1740531062493,-306.73807068,0.00046849,120]
[354491143,1740531062503,-723.800798,0.00046849,14]
[354491144,1740531062513,-184.923543,0.00046849,7]
[354491145,1740531062524,-723.800798,0.00046849,14]
[354491146,1740531062534,-1296.79,0.00046849,120]
[354491147,1740531062543,-1097.857097,0.00046849,14]
[354491148,1740531062553,-2357.95,0.00046849,120]
[354491149,1740531062563,-723.800798,0.00046849,14]
[354491150,1740531062573,-1097.857097,0.00046849,14]
[354491151,1740531062582,-3537.02,0.00046849,120]
[354491152,1740531062592,-723.800798,0.00046849,14]
[354491153,1740531062601,-1097.857097,0.00046849,14]
[354491154,1740531062611,-2531.05,0.00046849,120]
[354491155,1740531062620,-1764.15,0.00046849,120]
[354491156,1740531062630,-1097.857097,0.00046849,14]
[354491157,1740531062640,-782.36,0.00046849,120]
[354491158,1740531062649,-184.923543,0.00046849,7]
[354491159,1740531062659,-500.0,0.00046849,120]
[354491160,1740531062668,-184.923543,0.00046849,7]
[354491161,1740531062677,-184.923543,0.00046849,7]
[354491162,1740531062687,-500.0,0.00046849,120]
[354491163,1740531062696,-1302.89,0.00046849,120]
[354491164,1740531062705,-1325.3,0.00046849,120]
[354491165,1740531062715,-855.8,0.00046849,120]
[354491166,1740531062724,-500.0,0.00046849,120]
[354491167,1740531062734,-500.0,0.00046849,120]
[354491168,1740531062743,-508.17,0.00046849,120]
[354491169,1740531062752,-588.97,0.00046849,120]
[354491170,1740531062762,-781.46,0.00046849,120]
[354491171,1740531062771,-2606.0,0.00046849,120]
[354491172,1740531062781,-500.0,0.00046849,120]
[354491173,1740531062790,-719.24,0.00046849,120]
[354491174,1740531062800,-3221.18,0.00046849,120]
[354491175,1740531062811,-500.0,0.00046849,120]
[354491176,1740531062821,-500.0,0.00046849,120]
[354491177,1740531062830,-2101.04,0.00046849,2]
[354491178,1740531062843,-2460.16,0.00046849,120]
[354491179,1740531062856,-1249.0,0.00046849,120]
[354491180,1740531062865,-1049.79,0.00046849,120]
[354491181,1740531062874,-578.92,0.00046849,120]
[354491182,1740531062884,-1282.44,0.00046849,120]
[354491183,1740531062894,-2015.66,0.00046849,120]
[354491184,1740531062903,-500.0,0.00046849,120]
[354491185,1740531062912,-1163.39,0.00046849,120]
[354491186,1740531063000,-2466.52,0.00046849,120]
[354491187,1740531063015,-500.0,0.00046849,120]
[354491188,1740531063025,-661.24,0.00046849,120]
[354491189,1740531063035,-5365.37,0.00046849,120]
[354491190,1740531063045,-595.8305709,0.00046849,120]
[354491191,1740531063055,-500.0,0.00046849,120]
[354491192,1740531063065,-2471.52,0.00046849,120]
[354491193,1740531063076,-1066.09,0.00046849,120]
[354491194,1740531063086,-1079.21,0.00046849,120]
[354491195,1740531063095,-500.0,0.00046849,120]
[354491196,1740531063105,-783.59,0.00046849,120]
[354491197,1740531063114,-547.8,0.00046849,120]
[354491198,1740531063124,-623.26,0.00046849,120]
[354491199,1740531063134,-1217.71,0.00046849,120]
[354491200,1740531063144,-2520.36,0.00046849,120]
[354491201,1740531063154,-940.23,0.00046849,120]
[354491202,1740531063164,-648.87,0.00046849,120]
[354491203,1740531063174,-1700.79,0.00046849,120]
[354491204,1740531063184,-768.13,0.00046849,120]
[354491205,1740531063194,-2689.07,0.00046849,120]
[354491206,1740531063204,-935.28,0.00046849,120]
[354491207,1740531063214,-2783.76,0.00046849,120]
[354491208,1740531063223,-500.0,0.00046849,120]
[354491209,1740531063233,-2361.31,0.00046849,120]
[354491210,1740531063242,-500.0,0.00046849,120]
[354491211,1740531063251,-1982.62,0.00046849,120]
[354491212,1740531063261,-971.9,0.00046849,120]
[354491213,1740531063271,-4060.81,0.00046849,120]
[354491214,1740531063281,-680.27,0.00046849,120]
[354491215,1740531063291,-500.0,0.00046849,120]
[354491216,1740531063301,-3257.38,0.00046849,120]
[354491217,1740531063312,-1260.98,0.00046849,120]
[354491218,1740531063323,-500.0,0.00046849,120]
[354491219,1740531063333,-952.1,0.00046849,120]
[354491220,1740531063343,-772.63,0.00046849,120]
[354491221,1740531063354,-1331.58,0.00046849,120]
[354491222,1740531063363,-3735.14,0.00046849,120]
[354491223,1740531063374,-500.0,0.00046849,120]
[354491224,1740531063384,-622.57,0.00046849,120]
[354491225,1740531063394,-500.0,0.00046849,120]
[354491226,1740531063403,-500.0,0.00046849,120]
[354491227,1740531063413,-5486.63,0.00046849,120]
[354491228,1740531063423,-2988.69,0.00046849,120]
[354491229,1740531063432,-500.0,0.00046849,120]
[354491230,1740531063442,-500.0,0.00046849,120]
[354491231,1740531063451,-2196.44,0.00046849,120]
[354491232,1740531063460,-2964.83,0.00046849,120]
[354491233,1740531063470,-513.61,0.00046849,120]
[354491234,1740531063479,-500.0,0.00046849,120]
[354491235,1740531063489,-12635.87,0.00046849,120]
[354491236,1740531063498,-1146.16,0.00046849,120]
[354491237,1740531063508,-518.51,0.00046849,120]
[354491238,1740531063517,-1221.75,0.00046849,120]
[354491239,1740531063528,-1740.42,0.00046849,120]
[354491240,1740531063540,-1173.08,0.00046849,120]
[354491241,1740531063549,-515.22,0.00046849,120]
[354491242,1740531063559,-3257.22,0.00046849,120]
[354491243,1740531063569,-1498.89,0.00046849,120]
[354491244,1740531063579,-1734.9,0.00046849,120]
[354491245,1740531063588,-1654.79,0.00046849,120]
[354491246,1740531063598,-8766.284354,0.00046849,14]
[354491247,1740531063607,-8766.284354,0.00046849,14]
[354491248,1740531063617,-8766.284354,0.00046849,14]
[354491249,1740531063626,-500.0,0.00046849,120]
[354491250,1740531063635,-160.16379791,0.00046849,120]
[354491251,1740531063645,-8766.284354,0.00046849,14]
[354491252,1740531063654,-500.0,0.00046849,120]
[354491253,1740531063663,-8766.284354,0.00046849,14]
[354491254,1740531063673,-4671.41,0.00046849,120]
[354491255,1740531063682,-8766.284354,0.00046849,14]
[354491256,1740531063691,-2808.62,0.00046849,120]
[354491257,1740531063701,-500.0,0.00046849,120]
[354491258,1740531063711,-6985.31,0.00046849,120]
[354491259,1740531063720,-1849.77,0.00046849,120]
[354491260,1740531063729,-3291.06,0.00046849,120]
[354491261,1740531063739,-204.810138,0.00046849,14]
[354491262,1740531063748,-204.810138,0.00046849,14]
[354491263,1740531063758,-622.91,0.00046849,120]
[354491264,1740531063768,-2798.65,0.00046849,120]
[354491265,1740531063777,-204.810138,0.00046849,14]
[354491266,1740531063787,-500.0,0.00046849,120]
[354491267,1740531063797,-816.06,0.00046849,120]
[354491268,1740531063806,-204.810138,0.00046849,14]
[354491269,1740531063815,-500.0,0.00046849,120]
[354491270,1740531063824,-204.810138,0.00046849,14]
[354491271,1740531063834,-990.94,0.00046849,120]
[354491272,1740531063844,-204.810138,0.00046849,14]
[354491273,1740531063853,-1895.04,0.00046849,120]
[354491274,1740531063863,-500.0,0.00046849,120]
[354491275,1740531063873,-151.0,0.00046849,14]
[354491276,1740531063882,-151.0,0.00046849,14]
[354491277,1740531063892,-151.0,0.00046849,14]
[354491278,1740531063901,-3363.92,0.00046849,120]
[354491279,1740531063911,-805.1,0.00046849,120]
[354491280,1740531063920,-5002.74,0.00046849,120]
[354491281,1740531063930,-4335.61,0.00046849,120]
[354491282,1740531063939,-981.77,0.00046849,120]
[354491283,1740531063949,-500.0,0.00046849,120]
[354491284,1740531063958,-949.89,0.00046849,120]
[354491285,1740531063967,-3399.25,0.00046849,120]
[354491286,1740531063977,-500.0,0.00046849,120]
[354491287,1740531063987,-1638.3,0.00046849,120]
[354491288,1740531063996,-2308.54,0.00046849,120]
[354491289,1740531064005,-6222.26,0.00046849,120]
[354491290,1740531064015,-646.4,0.00046849,120]
[354491291,1740531064024,-603.71,0.00046849,120]
[354491292,1740531064034,-610.62,0.00046849,120]
[354491293,1740531064044,-3194.29,0.00046849,120]
[354491294,1740531064054,-1529.26,0.00046849,120]
[354491295,1740531064065,-514.74,0.00046849,120]
[354491296,1740531064075,-500.0,0.00046849,120]
[354491297,1740531064085,-4562.12,0.00046849,120]
[354491298,1740531064094,-2313.49,0.00046849,120]
[354491299,1740531064104,-769.77,0.00046849,120]
[354491300,1740531064113,-1060.76,0.00046849,120]
[354491301,1740531064123,-566.17,0.00046849,120]
[354491302,1740531064133,-500.0,0.00046849,120]
[354491303,1740531064142,-5475.93,0.00046849,120]
[354491304,1740531064152,-2208.43,0.00046849,120]
[354491305,1740531064162,-500.0,0.00046849,120]
[354491306,1740531064172,-500.0,0.00046849,120]
[354491307,1740531064182,-4677.94,0.00046849,120]
[354491308,1740531064193,-3432.5,0.00046849,120]
[354491309,1740531064203,-2346.77,0.00046849,120]
[354491310,1740531064214,-500.0,0.00046849,120]
[354491311,1740531064226,-843.97,0.00046849,120]
[354491312,1740531064235,-1456.44,0.00046849,120]
[354491313,1740531064245,-500.0,0.00046849,120]
[354491314,1740531064254,-2005.25,0.00046849,120]
[354491315,1740531064263,-6417.33,0.00046849,120]
[354491316,1740531064273,-525.7,0.00046849,120]
[354491317,1740531064282,-500.0,0.00046849,120]
[354491318,1740531064292,-1123.87,0.00046849,120]
[354491319,1740531064302,-4454.53,0.00046849,120]
[354491320,1740531064312,-1149.06,0.00046849,120]
[354491321,1740531064325,-978.08,0.00046849,120]
[354491322,1740531064335,-500.0,0.00046849,120]
[354491323,1740531064344,-4038.61,0.00046849,120]
[354491324,1740531064355,-500.0,0.00046849,120]
[354491325,1740531064366,-517.78447664,0.00046849,120]
[354491326,1740531064377,-4285.66,0.00046849,120]
[354491327,1740531064387,-2143.64425,0.00046849,14]
[354491328,1740531064398,-2143.64425,0.00046849,14]
[354491329,1740531064408,-2143.64425,0.00046849,14]
[354491330,1740531064417,-3737.69,0.00046849,120]
[354491331,1740531064427,-2143.64425,0.00046849,14]
[354491332,1740531064437,-2143.64425,0.00046849,14]
[354491333,1740531064447,-607.45,0.00046849,120]
[354491334,1740531064456,-500.0,0.00046849,120]
[354491335,1740531064465,-2143.64425,0.00046849,14]
[354491336,1740531064479,-1363.91,0.00046849,120]
[354491337,1740531064489,-2355.63,0.00046849,120]
[354491338,1740531064498,-3179.62,0.00046849,120]
[354491339,1740531064507,-1136.49,0.00046849,7]
[354491340,1740531064517,-3097.5,0.00046849,120]
[354491341,1740531064526,-1081.41,0.00046849,120]
[354491342,1740531064535,-500.0,0.00046849,120]
[354491343,1740531064545,-1515.3,0.00046849,120]
[354491344,1740531064554,-2236.82,0.00046849,120]
[354491345,1740531064563,-500.0,0.00046849,120]
[354491346,1740531064572,-5609.9,0.00046849,120]
[354491347,1740531064582,-1968.24,0.00046849,120]
[354491348,1740531064593,-4388.03,0.00046849,120]
[354491349,1740531064896,-1613.7,0.00046849,120]
[354491350,1740531064907,-3786.55,0.00046849,120]
[354491351,1740531064917,-744.31,0.00046849,120]
[354491352,1740531064926,-151.0,0.00046849,14]
[354491353,1740531064936,-152.742844,0.00046849,14]
[354491354,1740531064946,-500.0,0.00046849,120]
[354491355,1740531064955,-727.13,0.00046849,120]
[354491356,1740531064964,-500.0,0.00046849,120]
[354491357,1740531064974,-151.0,0.00046849,14]
[354491358,1740531064983,-3202.23,0.00046849,120]
[354491359,1740531064993,-151.0,0.00046849,14]
[354491360,1740531065002,-151.0,0.00046849,14]
[354491361,1740531065011,-1425.91,0.00046849,120]
[354491362,1740531065020,-500.0,0.00046849,120]
[354491363,1740531065030,-4223.97,0.00046849,120]
[354491364,1740531065039,-630.69,0.00046849,120]
[354491365,1740531065048,-4122.33,0.00046849,120]
[354491366,1740531065057,-2910.96,0.00046849,120]
[354491367,1740531065067,-200.0,0.00046849,7]
[354491368,1740531065076,-1280.01,0.00046849,120]
[354491369,1740531065086,-590.14,0.00046849,120]
[354491370,1740531065096,-1372.82,0.00046849,120]
[354491371,1740531065106,-874.58,0.00046849,120]
[354491372,1740531065115,-806.02,0.00046849,120]
[354491373,1740531065125,-500.0,0.00046849,120]
[354491374,1740531065134,-1658.61,0.00046849,120]
[354491375,1740531065144,-1529.22,0.00046849,120]
[354491376,1740531065154,-4416.83,0.00046849,120]
[354491377,1740531065163,-4094.21,0.00046849,120]
[354491378,1740531065173,-2604.91,0.00046849,120]
[354491379,1740531065182,-5750.35,0.00046849,120]
[354491380,1740531065192,-500.0,0.00046849,120]
[354491381,1740531065201,-500.0,0.00046849,120]
[354491382,1740531065210,-3783.53,0.00046849,120]
[354491383,1740531065220,-500.0,0.00046849,120]
[354491384,1740531065229,-2256.67,0.00046849,120]
[354491385,1740531065239,-1320.04,0.00046849,120]
[354491386,1740531065249,-1458.01,0.00046849,120]
[354491387,1740531065258,-795.09,0.00046849,120]
[354491388,1740531065267,-354.317256,0.00046849,14]
[354491389,1740531065277,-1262.91,0.00046849,120]
[354491390,1740531065287,-354.317256,0.00046849,14]
[354491391,1740531065296,-354.317256,0.00046849,14]
[354491392,1740531065306,-500.0,0.00046849,120]
[354491393,1740531065319,-4007.11,0.00046849,120]
[354491394,1740531065329,-500.0,0.00046849,120]
[354491395,1740531065338,-7436.69,0.00046849,100]
[354491396,1740531065348,-354.317256,0.00046849,14]
[354491397,1740531065359,-299.12601296,0.00046849,120]
[354491398,1740531065368,-538.31,0.00046849,120]
[354491399,1740531065378,-354.317256,0.00046849,14]
[354491400,1740531065387,-284.38948286,0.00046849,120]
[354491401,1740531065398,-354.317256,0.00046849,14]
[354491402,1740531065407,-866.07,0.00046849,120]
[354491403,1740531065417,-1664.51,0.00046849,120]
[354491404,1740531065427,-1273.56,0.00046849,120]
[354491405,1740531065437,-2659.41,0.00046849,120]
[354491406,1740531065446,-500.0,0.00046849,120]
[354491407,1740531065455,-1374.42,0.00046849,120]
[354491408,1740531065465,-1106.4,0.00046849,120]
[354491409,1740531065474,-670.63,0.00046849,120]
[354491410,1740531065484,-1185.21,0.00046849,120]
[354491411,1740531065492,-530.92,0.00046849,120]
[354491412,1740531065501,-500.0,0.00046849,120]
[354491413,1740531065511,-2434.31,0.00046849,120]
[354491414,1740531065520,-500.0,0.00046849,120]
[354491415,1740531065529,-500.0,0.00046849,120]
[354491416,1740531065539,-151.0,0.00046849,14]
[354491417,1740531065548,-569.42755619,0.00046849,120]
[354491418,1740531065558,-151.0,0.00046849,14]
[354491419,1740531065567,-500.0,0.00046849,120]
[354491420,1740531065577,-500.0,0.00046849,120]
[354491421,1740531065586,-151.0,0.00046849,14]
[354491422,1740531065595,-5183.6,0.00046849,120]
[354491423,1740531065605,-500.0,0.00046849,120]
[354491424,1740531065614,-617.04,0.00046849,120]
[354491425,1740531065624,-1528.24,0.00046849,120]
[354491426,1740531065634,-500.0,0.00046849,120]
[354491427,1740531065643,-3098.26,0.00046849,120]
[354491428,1740531065652,-500.0,0.00046849,120]
[354491429,1740531065662,-3325.4,0.00046849,120]
[354491430,1740531065672,-4239.6,0.00046849,120]
[354491431,1740531065682,-500.0,0.00046849,120]
[354491432,1740531065691,-2640.96,0.00046849,120]
[354491433,1740531065700,-214.98817674,0.00046849,120]
[354491434,1740531065710,-816.23,0.00046849,120]
[354491435,1740531065719,-3322.51,0.00046849,120]
[354491436,1740531065728,-4470.33,0.00046849,120]
[354491437,1740531065738,-2720.58,0.00046849,120]
[354491438,1740531065748,-4305.37,0.00046849,120]
[354491439,1740531065757,-1902.11,0.00046849,120]
[354491440,1740531065766,-661.19,0.00046849,120]
[354491441,1740531065775,-500.0,0.00046849,120]
[354491442,1740531065784,-500.0,0.00046849,120]
[354491443,1740531065794,-500.0,0.00046849,120]
[354491444,1740531065803,-500.0,0.00046849,120]
[354491445,1740531065811,-2228.16,0.00046849,120]
[354491446,1740531065821,-500.0,0.00046849,120]
[354491447,1740531065830,-4897.82,0.00046849,120]
[354491448,1740531065839,-550.0,0.00046849,120]
[354491449,1740531065849,-539.90985534,0.00046849,120]
[354491450,1740531065858,-1420.76,0.00046849,120]
[354491451,1740531065867,-673.27,0.00046849,120]
[354491452,1740531065876,-990.91,0.00046849,120]
[354491453,1740531065885,-1646.08,0.00046849,120]
[354491454,1740531065894,-4937.63,0.00046849,120]
[354491455,1740531065904,-490.169128,0.00046849,14]
[354491456,1740531065913,-334.6883016,0.00046849,30]
[354491457,1740531065922,-490.169128,0.00046849,14]
[354491458,1740531065932,-2364.24,0.00046849,120]
[354491459,1740531065941,-490.169128,0.00046849,14]
[354491460,1740531065951,-500.0,0.00046849,120]
[354491461,1740531065960,-575.79,0.00046849,120]
[354491462,1740531065969,-864.27,0.00046849,120]
[354491463,1740531065978,-1797.54,0.00046849,120]
[354491464,1740531065988,-500.0,0.00046849,120]
[354491465,1740531065997,-2767.8,0.00046849,120]
[354491466,1740531066007,-2197.78,0.00046849,120]
[354491467,1740531066016,-490.169128,0.00046849,14]
[354491468,1740531066026,-490.169128,0.00046849,14]
[354491469,1740531066035,-500.0,0.00046849,120]
[354491470,1740531066044,-2771.79,0.00046849,120]
[354491471,1740531066054,-490.169128,0.00046849,14]
[354491472,1740531066064,-172.25291595,0.00046858,22]
[354491473,1740531066073,-531.368675,0.00046864,120]
[354491474,1740531066082,-590.85269077,0.00046873,10]
[354491475,1740531066091,-500.0,0.00046873,10]
[354491476,1740531066100,-647.08183376,0.00046874,120]
[354491477,1740531066109,-531.368675,0.00046878,120]
[354491478,1740531066119,-491.62163203,0.00046879,25]
[354491479,1740531066130,-1000.0,0.000469,2]
[354491480,1740531066145,-1000.0,0.000469,2]
[354491481,1740531066165,-819.313174,0.000469,2]
[354491482,1740531066175,-400.0,0.000469,17]
[354491483,1740531066185,-1325.0,0.000469,7]
[354491484,1740531066195,-224.7681952,0.00046904,120]
[354491485,1740531066204,-7462.12182073,0.00046944,15]
[354491486,1740531066214,-4180.22040779,0.00046944,15]
[354491487,1740531066223,-151.0,0.00046961,14]
[354491488,1740531066232,-930.242039,0.00046961,14]
[354491489,1740531066242,-930.242039,0.00046961,14]
[354491490,1740531066251,-531.368675,0.00046971,120]
[354491491,1740531066261,-647.08183376,0.00046989,120]
[354491492,1740531066270,-1045.44,0.00046993,2]
[354491493,1740531066280,-1119.68,0.00046999,120]
[354491494,1740531066289,-1119.68,0.00046999,120]
[354491495,1740531066299,-1119.68,0.00046999,120]
[354491496,1740531066308,-1119.68,0.00046999,120]
[354491497,1740531066319,-1119.68,0.00046999,120]
[354491498,1740531066328,-1119.68,0.00046999,120]
[354491499,1740531066338,-625.22,0.00046999,120]
[354491500,1740531066347,-625.22,0.00046999,120]
[354491501,1740531066357,-625.22,0.00046999,120]
[354491502,1740531066367,-625.22,0.00046999,120]
[354491503,1740531066376,-894612.29772209,0.00047,120]
[354491504,1740531066385,-677.9871,0.00047,120]
[354491505,1740531066397,-10000.0,0.00047,120]
[354491506,1740531066406,-151.0,0.00047,14]
[354491507,1740531066416,-268.70246,0.00047,14]
[354491508,1740531066425,-151.344253,0.00047,14]
[354491509,1740531066435,-151.0,0.00047,14]
[354491510,1740531066444,-151.0,0.00047,14]
[354491511,1740531066453,-151.0,0.00047,14]
[354491512,1740531066462,-151.0,0.00047,14]
[354491513,1740531066471,-157.200897,0.00047,14]
[354491514,1740531066481,-151.0,0.00047,14]
[354491515,1740531066490,-151.0,0.00047,14]
[354491516,1740531066499,-170.987538,0.00047,14]
[354491517,1740531066509,-170.987538,0.00047,14]
[354491518,1740531066518,-170.987538,0.00047,14]
[354491519,1740531066528,-170.987538,0.00047,14]
[354491520,1740531066537,-151.0,0.00047,14]
[354491521,1740531066547,-185.954499,0.00047,14]
[354491522,1740531066556,-185.954499,0.00047,14]
[354491523,1740531066566,-185.954499,0.00047,14]
[354491524,1740531066575,-185.954499,0.00047,14]
[354491525,1740531066585,-151.0,0.00047,14]